{"text_format":"1","workbook":"xlsx","n_sheets":7,"sheets":["Portada","Amenazas","Hoja2"," Vulpersonas","Vulrecursos"," Vulsistem","Analisis del riesgo"],"not_rendered":{"charts":0,"images":15,"macros":0,"external_links":0,"defined_names":2,"comments":1,"pivot_tables":0},"unopened":[],"bounds":{"document_bytes":16777216,"sheet_cells":100000,"rows_first":2000,"rows_last":500,"rows_between":2000,"halvings":0,"cell_chars":16384,"cell_head_chars":4096},"cells_cut":0,"cells_raw":0,"read":"whole","date_system":"1900"}

{"sheet":"Portada","index":0,"n_rows":27,"n_cols":22,"rows_kept":27,"cut":false,"hidden":false,"merged":[[7,0,7,28],[19,17,19,28],[20,0,20,16],[16,5,16,10],[20,17,20,28],[4,0,5,28],[12,1,12,3],[10,1,10,3],[10,4,10,14],[10,15,10,20],[10,21,10,27],[11,1,11,3],[11,4,11,14],[9,1,9,3],[8,1,8,3],[8,4,8,16],[8,17,8,18],[16,16,16,20],[21,0,21,16],[25,17,25,28],[26,0,26,16],[25,0,25,16],[19,0,19,16],[22,0,22,16],[23,17,23,20],[24,0,24,16],[23,0,23,16],[24,17,24,20],[21,17,21,28],[22,21,22,28],[23,21,23,28],[24,21,24,28],[26,17,26,28],[0,0,3,3],[0,4,3,28],[22,17,22,20],[8,19,8,27],[9,4,9,27],[12,4,12,14],[12,15,12,20],[12,21,12,27],[11,15,11,20],[11,21,11,27],[14,0,14,28],[15,0,15,28],[17,0,17,4],[17,5,17,27],[16,21,16,25],[16,0,16,4]]}
[null,null,null,null,"ANEXO 1: AMENAZAS Y ANÁLISIS DE VULNERABILIDAD\nESTACIÓN B-3 RESTREPO"]
[]
[]
[]
[" ANÁLISIS DE RIESGO "]
[]
[]
["DATOS DE LA ORGANIZACIÓN"]
[null,"EMPRESA",null,null,"UNIDAD ADMINISTRATIVA ESPECIAL CUERPO OFICIAL DE BOMBEROS - B3 RESTREPO ",null,null,null,null,null,null,null,null,null,null,null,null,"NIT",null,899999061]
[null,"ACTIVIDAD ECONÓMICA",null,null,"8423 Orden público y actividades de seguridad"]
[null,"DIRECCIÓN",null,null,"Avenida Carrera 27 No. 19A - 10 Sur",null,null,null,null,null,null,null,null,null,null,"TELÉFONO",null,null,null,null,null,"60 1 3485420"]
[null,"CIUDAD",null,null,"Bogotá ",null,null,null,null,null,null,null,null,null,null,"DEPARTAMENTO",null,null,null,null,null,"Cundinamarca"]
[null,"No. COLABORADORES",null,null,38,null,null,null,null,null,null,null,null,null,null,"POBLACIÓN FLOTANTE",null,null,null,null,null,"1900-01-12"]
[]
["INFORMACIÓN DEL ANÁLISIS DEL RIESGO"]
[]
["Fecha de Elaboración:",null,null,null,null,"22/04/2026",null,null,null,null,null,null,null,null,null,null,"Fecha de Revisión:"]
["Responsable de Elaboración:",null,null,null,null,"Ingrid Katherine Rubio Martínez - Lorena Cruz"]
[]
["ITEMS EVALUACIÓN DEL RIESGO",null,null,null,null,null,null,null,null,null,null,null,null,null,null,null,null,"RESULTADO EVALUACIÓN"]
["AMENAZAS"]
["ANÁLISIS VULNERABILIDAD"]
["Personas",null,null,null,null,null,null,null,null,null,null,null,null,null,null,null,null,{"$f":"' Vulpersonas'!D32","v":2},null,null,null,{"$f":"' Vulpersonas'!E32","v":"MEDIA"}]
["Recursos",null,null,null,null,null,null,null,null,null,null,null,null,null,null,null,null,{"$f":"Vulrecursos!D44","v":1.9444444444444444},null,null,null,{"$f":"Vulrecursos!E44","v":"MEDIA"}]
["Sistemas o Procesos",null,null,null,null,null,null,null,null,null,null,null,null,null,null,null,null,{"$f":"' Vulsistem'!D26","v":2.1749999999999998},null,null,null,{"$f":"' Vulsistem'!E26","v":"BAJA"}]
["CONSOLIDADO ANÁLISIS DEL RIESGO"]
["PRIORIZACIÓN RIESGOS"]

{"sheet":"Amenazas","index":1,"n_rows":43,"n_cols":6,"rows_kept":43,"cut":false,"hidden":false,"merged":[[42,1,42,2],[14,1,14,2],[39,1,39,2],[40,1,40,2],[41,1,41,2],[22,1,22,2],[30,1,30,2],[28,1,28,2],[29,1,29,2],[24,1,24,2],[25,1,25,2],[21,1,21,2],[35,1,35,2],[31,1,31,2],[32,1,32,2],[37,1,37,2],[16,1,16,2],[0,0,2,5],[4,1,4,2],[5,1,5,2],[6,1,6,2],[9,1,9,2],[7,1,7,2],[8,1,8,2],[5,0,13,0],[11,1,11,2],[12,1,12,2],[10,1,10,2],[13,1,13,2],[36,0,37,0],[36,1,36,2],[38,1,38,2],[30,0,35,0],[14,0,22,0],[34,1,34,2],[33,1,33,2],[23,0,29,0],[23,1,23,2],[17,1,17,2],[15,1,15,2],[19,1,19,2],[20,1,20,2],[26,1,26,2],[27,1,27,2],[18,1,18,2]]}
["ANÁLISIS DE RIESGOS\nAMENAZAS"]
[]
[]
[]
["ORIGEN","AMENAZA",null,"TIPO DE AMENAZA ","DESCRIPCIÓN DE LA AMENAZA","CALIFICACIÓN DE LA AMENAZA "]
["NATURAL","Movimientos sísmicos",null,"EXTERNA","Probables movimientos vibratorios, rápidos y violentos de la superficie terrestre, provocados por perturbaciones en el interior de la Tierra (choque de placas tectónicas)\nDocumetar el rango de riesgo sismico de Bogotá - Presentaciones Gestión del Riesgo - Entrenamiento de Brigadas.\nExisten fallas estructurales por situaciones aledañas a la estación que generan riesgo de caída derivada de un movimiento sismico.","PROBABLE"]
[null,"Vientos fuertes",null,"EXTERNA","En la ciudad de Bogotá se pueden presentar vendavales y/o fuertes vientos. Estos pueden llegar a afectar las instalaciones cuando lleven y/o arrastren consigo objetos o elementos desde otras zonas.\n\nLos meses con mayor presencia de vientos fuertes da inicio a mediados de abril y finalizan a mediados de septiembre.","POSIBLE"]
[null,"Tormenta eléctrica (descarga eléctrica)",null,"EXTERNA","Según el Ideam, Bogotá presenta un cambio de clima constante lo cual genera que se puedan presentar tormentas eléctricas.\n\nEstas pueden llegar a provocar daños en las redes eléctricas y de comunicación de la empresa","POSIBLE"]
[null,"Inundación ",null,"INTERNA - EXTERNA","Una inundación se produce cuando hay un rápido crecimiento del nivel del agua que cubre o llena determinadas áreas. Es importante resaltar que las inundaciones hacen referencia a láminas de agua mayores de 60 cm\nSe presentan inundaciones cuando hay fuertes lluvias y granizadas en el sector en el cual esta ubicada la estación.","PROBABLE"]
[null,"Enfermedades endémicas",null,"INTERNA - EXTERNA","En el campo de la medicina, describe una enfermedad que está constantemente presente en cierta región geográfica o en cierto grupo de personas.","POSIBLE"]
[null,"Pandemias ",null,"INTERNA","Las pandemias son grandes brotes de enfermedades que afectan a varios países y plantean riesgos sanitarios, sociales y económicos importantes. Un agente patógeno que circula rápidamente y se propaga por todo el planeta puede causar la muerte de decenas de millones de personas, perturbar las economías y desestabilizar la seguridad de los países, tal como lo ha demostrado la pandemia de COVID-19. El cambio climático, la urbanización y la falta de agua y saneamiento son factores que pueden contribuir a brotes de rápida propagación y catastróficos.","PROBABLE"]
[null,"Deslizamientos",null,"EXTERNA","Son conocidos popularmente como deslizamientos, derrumbes, procesos de remoción en masa, fenómenos de remoción en masa, fallas de taludes y laderas. Movimiento rápido de material a lo largo de la ladera sobre un plano o superficie inclinada. ","POSIBLE"]
[null,"Avenidas Torrenciales ",null,"EXTERNA","Las avenidas torrenciales son crecidas repentinas producto de fuertes precipitaciones que causan aumentos rápidos del nivel de agua de los ríos y quebradas de alta pendiente. Estas crecientes pueden ser acompañadas por flujo de sedimentos de acuerdo con las condiciones de la cuenca. Debido a sus características pueden causar grandes daños en infraestructura y pérdida de vidas humanas. \nDebido a la ubicación de la estación B-3 Restrepo la probabilidad de inundación es alta por lo cual se generan avenidas torrenciales generando afectación en las inmediaciones y en la estación.","PROBABLE"]
[null,"Granizadas",null,"EXTERNA","El granizo, por lo tanto, es una precipitación sólida. Se compone de pequeñas esferas de hielo, con un diámetro habitual de entre cinco y cincuenta milímetros. El granizo se genera en las nubes de tipo cumulonimbo. Se han presentado granizadas por temporadas en la estación.","PROBABLE"]
["TECNOLOGICOS","Presencia de Materiales Peligrosos (Fuga y/o derrame de productos químicos)",null,"INTERNA - EXTERNA","Se puede presentar fugas teniendo en cuenta que en la estación cuenta con una cocina y/o cafetería donde se realiza cocción y calentamiento de alimentos.\nPor almacenamiento de productos inflamables, químicos y propios de su labor. \nPresencia de vehículos en el parqueadero y sala de maquinas. \nSe cuenta con un área logistica que almacena productos quimicos combustibles e inflamables y RESPEL. Esta área cuenta con un parqueadero para máquinas, camionetas y vehiculos (Parque automotor), lo que potencializa la probabilidad del riesgo.","PROBABLE"]
[null,"Incendio",null,"INTERNA - EXTERNA","Es un fenómeno que se presenta cuando uno\no varios materiales inflamables son\nconsumidos en forma incontrolada por el\nfuego, generando pérdidas en vidas o/y\nbienes. Para que se produzca fuego es\nnecesario que existan tres elementos: material\ncombustible, oxígeno y una fuente de calor","POSIBLE"]
[null,"Fallas estructurales",null,"INTERNA - EXTERNA","Se puede presentar debido a situaciones de riesgo como sismos, o terremotos los cuales afectarían directamente la estructura existente.\nPara prevenir la materialización del riesgo es importante realizar una revisión de estructuras aledañas (caso de los 4 postes que se encuentran al interior de la estación)","POSIBLE"]
[null,"Incendio de vehículos",null,"INTERNA - EXTERNA","Son incendios que involucran vehículos de servicio, automóviles y/o aquellos que transitan por la vías de transito. Teniendo en cuenta el área logistica y la carga combustible que se encuentra en ella, se hace probable el tema de incendio por el parque automotor que se encuentra allí.","PROBABLE"]
[null,"Explosión",null,"INTERNA - EXTERNA","Una explosión es la liberación súbita de energía en forma de calor, luz, presión y ruido. Se pueden presentar por fallas en tanques de combustible de vehículos, automóviles y motocicletas que circulan por los alrededores. Por almacenamiento de productos inflamables teniendo en cuenta la acumulación de vapores por los productos acumulados en el área de logistica (taller del parque automotor). \nLos calentadores del costado norte son de gas natural y generan probabilidad de explosión.\nEn las estaciones cuentan con autocontenidos, llantas, tanques de aire de los camiones que generan exposición al riesgo de explosión.\nRiesgo de explosión por acumulación de gases y vapores que pueden generarse por el vertimiento.","POSIBLE"]
[null,"Eléctrico",null,"INTERNA - EXTERNA","Emergencias eléctricas pueden incluir cortocircuitos, electrocuciones o apagones.\nLas sobre cargas se pueden presentar por una saturación de la capacidad del sistema eléctrico existente. \nSe puede presentar en la estación por saturación de cables. \nDentro de la estación se encuentra cableado electrico a baja altura generando el riesgo de contacto con las máquinas. Se esta haciendo transformación a fibra óptica y se están dejando cables fuera de servicio sin ser retirados.","POSIBLE"]
[null,"Contaminación industrial",null,"INTERNA - EXTERNA","Se refiere a la liberación no controlada de sustancias químicas o materiales peligrosos en un entorno industrial. \nCerca a la estación B-3 se encuentra un almacén de baterías (frente a la estación).","POSIBLE"]
[null,"Radiaciones ",null,"INTERNA - EXTERNA","Las radiaciones ionizantes son un tipo de radiación electromagnética o partículas subatómicas con suficiente energía para liberar electrones de átomos o moléculas, potencialmente causando daño en el ADN y aumentando el riesgo de cáncer. Las radiaciones no ionizantes, en contraste, tienen menos energía y no pueden liberar electrones; ejemplos incluyen luz visible, microondas y ondas de radio, siendo menos dañinas en general, pero aún pueden causar efectos adversos, como quemaduras solares o calentamiento de tejidos con exposición prolongada o intensa.","POSIBLE"]
[null,"Mecánico",null,"INTERNA","Las emergencias mecánicas pueden involucrar accidentes de maquinaria, equipos pesados averiados. Teniendo en cuenta las herramientas mecánicas que se usan debido a las diversas emergencias que se deban a la atención. ","POSIBLE"]
["VIAL","Accidentes de tránsito internos",null,"INTERNA","Se refieren a colisiones, choques u otros incidentes que ocurren dentro de la estación por parqueo de vehículos propios y los de uso propio de su actividad. \nTeniendo en cuenta que en la estación tiene el parque automotor en el área de logistica y tienen sala de máquinas aumenta la posibilidad de los accidentes. ","POSIBLE"]
[null,"Accidentes de tránsito externos",null,"EXTERNA","Son sinestros viales que involucran a vehículos propios de la entidad cuando se realizan los desplazamientos hacia la atención de emergencias. ","POSIBLE"]
[null,"Accidentes mascotas y semovientes",null,"INTERNA - EXTERNA","Estos accidentes se producen cuando vehículos colisionan con animales, como perros, gatos, ganado u otros animales domésticos o de granja que se encuentran en las vías públicas.","POSIBLE"]
[null,"Acciones inseguras de actores viales / exceso de velocidad / exceso de confianza / Utilización de elementos distractores / Sueño",null,"INTERNA - EXTERNA","Se refiere a comportamientos peligrosos o imprudentes por parte de conductores, peatones u otros usuarios de la vía pública que pueden contribuir a la ocurrencia de accidentes de tránsito, como exceso de velocidad, conducción bajo la influencia de sustancias, cruzar calles sin respetar señales de tráfico, entre otros. \nProducto de sobre cansancio y/o  micorsueños que puedan darse por la alta afluencia de emergencias que se presentan.\nTeniendo en cuenta el cruce de la carrera 27 que queda frente a la estación y frente a la salida de máquinas de la misma, se aumenta la posibilidad de un accidente vial a causa de acciones inseguras de los actores viales.","POSIBLE"]
[null,"Fallas del vehículo",null,"INTERNA - EXTERNA","Son problemas mecánicos o técnicos en un vehículo que pueden causar un accidente o contribuir a su gravedad, como fallos en los frenos, neumáticos desgastados o problemas en el motor.\nAusencia de mantenimientos preventivos y correctivos a los vehículos de uso externo e internos propios de su labor. ","POSIBLE"]
[null,"Intensidad del tráfico",null,"EXTERNA"," Hace referencia a la cantidad de vehículos que circulan por las vías o en una determinada área en un período de tiempo específico. Puede variar desde un tráfico ligero hasta un tráfico denso y congestionado.","POSIBLE"]
[null,"Estado de la infraestructura vial / Falta de iluminación / Falta de señalización ",null,"EXTERNA"," Estos términos se refieren a condiciones de la carretera o calle que pueden contribuir a accidentes, como el mal estado del pavimento, la falta de iluminación adecuada en la noche o la ausencia de señales de tráfico claras y adecuadas.","POSIBLE"]
["SOCIAL","Hurto ",null,"EXTERNA","Se puede presentar en las instalaciones extrayendo bienes de la entidad o de los trabajadores sin que se percaten del hecho de manera inmediata.","POSIBLE"]
[null,"Asalto",null,"EXTERNA","Un asalto es un delito que involucra la amenaza o el uso de violencia, o el empleo de amenazas verbales o físicas, para llevar a cabo un robo u otro acto ilegal. A menudo, implica la confrontación directa con la víctima y la posibilidad de lesiones físicas.","POSIBLE"]
[null,"Secuestros",null,"EXTERNA","El secuestro es un delito en el que una persona es detenida o retenida en contra de su voluntad por parte de otra persona o grupo. Esto puede ser con fines de extorsión, rescate, control o coacción, y puede durar desde un breve período de tiempo hasta un secuestro prolongado.","POSIBLE"]
[null,"Asonadas",null,"EXTERNA","Las asonadas son disturbios o desórdenes públicos caracterizados por la violencia y la agitación. En general, involucran a grupos de personas que protestan, se rebelan o causan disturbios en la vía pública, a menudo en respuesta a situaciones políticas o sociales.","POSIBLE"]
[null,"Terrorismo",null,"EXTERNA","El terrorismo es un acto violento e intimidatorio motivado por razones de orden político, económico que busca generar un miedo en la población, por medio de: panfletos, llamadas terroristas, artefactos explosivos. Por ser entidad Publica.","POSIBLE"]
[null,"Concentraciones masivas",null,"EXTERNA","Se refiere a la reunión de un gran número de personas en un lugar específico y en un momento determinado. Estas concentraciones pueden tener diversos propósitos, como manifestaciones políticas, eventos deportivos, conciertos, celebraciones religiosas o sociales, y suelen requerir medidas de seguridad y logística para garantizar el orden y la seguridad de los asistentes.","POSIBLE"]
["BIOLOGICO ","Mordeduras y/o picaduras por animales",null,"INTERNA - EXTERNA","Hay exposición a riesgo biologico a causa de la atención de los servicios de rescate de animales o servicios apicolas que deben desarrollar los servidores.","PROBABLE"]
[null,"Plagas (roedores, palomas)",null,"INTERNA - EXTERNA","Hay exposición a riesgo biologico a causa de roedores, palomas, plagas en general que pueden generar contaminación.","PROBABLE"]
["ALTURAS","Caídas, accidentes de trabajo",null,"INTERNA","Se genera a exposición a riesgo de caídas o accidentes de trabajo con ocasión al trabajo en alturas dadas las actividades rutinarias y no rutinarias que deben desarrollar los servidores dentro de la estación. ","POSIBLE"]
[null,"EVENTO",null,"COLOR ASIGNADO","COMPORTAMIENTO","QUE SIGNIFICA"]
[null,"POSIBLE",null,1,"Es aquel fenómeno que puede suceder o que es factible porque no existen razones históricas y científicas para decir que esto no sucederá.","Nunca ha sucedido"]
[null,"PROBABLE",null,2,"Es aquel fenómeno esperado del cual existen razones y argumentos técnicos científicos para creer que sucederá.","Ya ha ocurrido"]
[null,"INMINENTE",null,3,"Es aquel fenómeno esperado que tiene alta probabilidad de ocurrir.","Evidente, detectable"]

{"sheet":"Hoja2","index":2,"n_rows":14,"n_cols":6,"rows_kept":14,"cut":false,"hidden":true,"merged":[]}
[]
[]
[]
[]
[]
[]
[]
[null,null,null,"EXTERNA",null,"POSIBLE"]
[null,null,null,"INTERNA",null,"PROBABLE"]
[null,null,null,"INTERNA - EXTERNA",null,"INMINENTE"]
[]
[null,null,null,"SI ",1]
[null,null,null,"NO ",0]
[null,null,null,"PARCIAL",0.5]

{"sheet":" Vulpersonas","index":3,"n_rows":40,"n_cols":5,"rows_kept":40,"cut":false,"hidden":false,"merged":[[0,0,2,6],[37,1,39,2],[4,0,4,6],[17,0,17,6],[5,0,5,6],[13,4,13,6],[15,4,15,6],[16,4,16,6],[3,0,3,3],[14,0,14,1],[14,4,14,6],[6,0,6,1],[8,0,8,1],[9,0,9,1],[10,0,10,1],[6,4,6,6],[7,0,7,6],[8,4,8,6],[9,4,9,6],[10,4,10,6],[11,4,11,6],[11,0,11,1],[12,4,12,6],[22,0,22,1],[25,0,25,1],[26,0,26,1],[24,0,24,6],[25,4,25,6],[26,4,26,6],[23,4,23,6],[12,0,12,1],[13,0,13,1],[15,0,15,1],[23,0,23,2],[16,0,16,2],[18,0,18,1],[22,4,22,6],[19,0,19,1],[33,3,33,6],[30,4,30,6],[33,0,35,1],[31,4,31,6],[34,3,34,6],[35,3,35,6],[29,0,29,1],[29,4,29,6],[31,0,31,2],[30,0,30,2],[27,0,27,1],[27,4,27,6],[28,0,28,1],[28,4,28,6],[20,0,20,1],[21,0,21,1],[18,4,18,6],[19,4,19,6],[20,4,20,6],[21,4,21,6]]}
["ANÁLISIS DE RIESGOS"]
[]
[]
[]
["EVALUACIÓN DE LA VULNERABILIDAD ELEMENTO: PERSONAS"]
["Para diligenciar la columna \"RESPUESTA\" debe colocar:\n\nSI              = Cuando el aspecto existe o tiene un nivel bueno. El puntaje asignado es igual a 1\nNO            = Cuando el aspecto no existe o tiene un nivel deficiente. El puntaje asignado es igual a 0\nPARCIAL = Cuando la implementación no está terminada o tiene un nivel regular. El puntaje asignado es igual a 0,5"]
["ASPECTO A EVALUAR EN EL ELEMENTO PERSONAS",null,"RESPUESTA","CALIFICACION","OBSERVACIONES"]
["1.GESTIÓN ORGANIZACIONAL"]
["¿Existe una política general en SST y Seguridad Vial, donde se indica la prevención y preparación para emergencias y se encuentra divulgada ?",null,"PARCIAL",0.5,"Politica General SST:“La UAE Cuerpo Oficial de Bomberos de Bogotá esta comprometida con la protección de la salud y la seguridad de los servidores y contratistas, mediante la promoción de la salud física y mental, la prevención de enfermedades y accidentes en el entorno laboral, integrando metodologías de identificación y control de peligros, reducción de riesgos, y de esta manera generar ambientes de trabajo seguros que garanticen el bienestar social de sus colaboradores y partes interesadas”.\n\nLa Política de Seguridad Vial de la Unidad Administrativa Especial Cuerpo Oficial de Bomberos de Bogotá, tiene como objeto garantizar la seguridad vial de sus actores viales a través del diseño, implementación, mantenimiento y mejora continua del plan estratégico de seguridad vial y en cumplimiento a los requisitos legales aplicables\n\n3.\tOBJETIVOS DE SEGURIDAD VIAL\n•\tIdentificar, y promover la reducción de los riesgos viales\n•\tEstructurar programas de gestión de riesgos críticos y factores de desempeño que mitiguen los riesgos viales.\n•\tPromover una cultura orientada a la generación de buenas prácticas en seguridad vial, con la participación de los funcionarios y partes interesadas"]
["¿A los empleados se les ha asignado  responsabilidades específicas para emergencias?",null,"PARCIAL",0.5,"La asignación de responsabilidades específicas para la atención de emergencias:\n\nEn estaciones no se cuenta con dicha asignación, sin embargo, los jefes (tenientes, sargentos) son los comandantes de los incidentes y quienes generan las ordenes correspondientes (jefes de brigada), los demás operativos (cabos y bomberos) contarían como brigadas contra incendios y derrames, brigada de evacuación y rescate y brigada de primeros auxilios. "]
["¿La Organización promueve activamente la participación de sus trabajadores en un programa de preparación para emergencias?",null,"SI ",1,"Anualmente la entidad cuenta con un Plan Institucional de Capacitación donde se preparan a los/as servidores/as para la atención de las diferentes emergencias de la ciudad."]
["¿Existe un esquema organizacional para la respuesta a emergencias, con funciones asignadas (Brigada de emergencias - Comité de emergencias)?",null,"PARCIAL",0.5,"La asignación del esquema organizacional para la respuesta a emergencias corresponde al SCI y a las designaciones que realice periodicamente el comandante del incidente. "]
["¿Han establecido mecanismos de interacción con su entorno que faciliten dar respuesta apropiada a los eventos que se puedan presentar? (Comités de Ayuda Mutua –CAM, Mapa Comunitario de Riesgos, Sistemas de Alerta Temprana – SAT, etc.)",null,"PARCIAL",0.5,"La estación  realiza mesa de trabajos como comité de ayuda mutua con la alcaldía y otras entidades."]
["¿Existen instrumentos o formatos para realizar inspecciones a las áreas para identificar condiciones inseguras que puedan generar emergencias ?",null,"PARCIAL",0.5,"Se evidencia que se cuentan con los formatos de inspecciones los cuales realizan en todas las sedes por  el area SST según lo referido por la subdirección de gestión humana SST. Documento referencia: GT-PR27-FT05 Matriz de Condiciones Inseguras. "]
["¿Existen instrumentos o formatos para realizar inspecciones a los equipos utilizados en emergencias?",null,"PARCIAL",0.5,"Se evidencia que se cuentan con los formatos de inspecciones los cuales realizan en todas las sedes por  el area SST según lo referido por la subdirección de gestión humana SST. Ejemplo de Formato: GT-PR27-FT04"]
["¿Se mantienen actualizados los planes de emergencias?",null,"NO ",0,"Se esta trabajando en la actualización del plan de Emergencias  "]
["Promedio Gestión Organizacional",null,null,{"$f":"AVERAGE(D9:D16)","v":0.5},{"$f":"IF(D17=\"\",\"\",IF($D17<0.34,\"MALO\",IF(AND($D17>=0.34,$D17<0.68),\"REGULAR\",\"BUENO\")))","v":"REGULAR"}]
["2. CAPACITACION Y ENTRENAMIENTO"]
["¿Se cuenta con un programa de capacitación en prevención y control de emergencias?",null,"SI ",1,"Se realizan de acuerdo a la atención de emergencias, sin embargo deben ser capacitados constantemente en estos aspectos."]
["¿Todos los miembros de la sede  han sido  capacitados de acuerdo al programa de capacitación en prevención y respuesta a emergencias?",null,"SI ",1,"Han recibido formación para la atención de emergencias. "]
["¿El personal de la brigada  - comité, ha recibido entrenamiento y capacitación en temas de prevención y control de emergencias ?",null,"PARCIAL",0.5,"Han recibido formación en prevención y control de emergencias enfocadas a su labor, sin embargo no se tiene una brigada y/o comité establecido como tal, dada la operatividad de la estación."]
["¿Esta divulgado el plan de emergencias y evacuación?",null,"NO ",0,"No se tiene información "]
["Se cuenta con manuales, folletos como material de difusión en temas de prevención y control de emergencias ?",null,"PARCIAL",0.5,"Se tiene formación en prevención y control de emergencias, sin embargo no se tiene los soportes y/o folletos con esta información. "]
["Promedio Capacitación y Entrenamiento",null,null,{"$f":"AVERAGE(D19:D23)","v":0.6},{"$f":"IF(D24=\"\",\"\",IF($D24<0.34,\"MALO\",IF(AND($D24>=0.34,$D24<0.68),\"REGULAR\",\"BUENO\")))","v":"REGULAR"}]
["3. CARACTERÍSTICAS DE SEGURIDAD"]
["¿Se ha identificado y clasificado el personal fijo y flotante en los diferentes horarios laborales y no laborales (menores de edad, adultos mayores, personas con discapacidad física)? ",null,"SI ",1,"Se tiene control de todo el personal que ingresa a la estación. "]
["¿Se han contemplado acciones específicas teniendo en cuenta la clasificación de la población en la preparación y respuesta a emergencias?",null,"PARCIAL",0.5,"Manifiestan que se tiene protocolos de acuerdo a los conocimientos que se tienen en atención de emergencias. "]
["Se cuenta con elementos de protección,  suficientes y adecuados para el personal, en el desarrollo de sus actividades rutinarias?",null,"SI ",1,"Se tienen los equipos de acuerdo a la emergencia ."]
["Se cuenta con elementos de protección personal para la respuesta para emergencias, de acuerdo con las  amenazas identificadas?",null,"SI ",1,"Se tienen los equipos de acuerdo a la emergencia que tengan que brindarle su respetiva tensión. "]
["Se cuenta con un esquema de seguridad física?",null,"SI ",1,"Se tiene servicio de vigilancia teniendo en cuenta que es debido al daño que se tiene en la puerta, se entiende de que es temporal. "]
["Promedio Características de Seguridad",null,null,{"$f":"AVERAGE(D26:D30)","v":0.9},{"$f":"IF(D31=\"\",\"\",IF($D31<0.34,\"MALO\",IF(AND($D31>=0.34,$D31<0.68),\"REGULAR\",\"BUENO\")))","v":"BUENO"}]
["VULNERABILIDAD PERSONAS (SUMA TOTAL DE PROMEDIOS)",null,null,{"$f":"D17+D24+D31","v":2},{"$f":"IF(D32<=1,\"ALTA\",IF(AND(D32>1,D32<=2),\"MEDIA\",\"BAJA\"))","v":"MEDIA"}]
[]
["Interpretación de la vulnerabilidad por cada aspecto",null,"BUENO","Si el resultado esta dentro del rango 0,68 a 1"]
[null,null,"REGULAR","Si el resultado esta dentro del rango 0,34 a 0,67"]
[null,null,"MALO","Si el resultado esta dentro del rango 0 a 0,33"]
[]
[null,"Interpretación de la vulnerabilidad por cada elemento",null,"0.0 - 1,00","ALTA"]
[null,null,null,"1,01 - 2,00","MEDIA"]
[null,null,null,"2,01 - 3,00","BAJA"]

{"sheet":"Vulrecursos","index":4,"n_rows":52,"n_cols":5,"rows_kept":52,"cut":false,"hidden":false,"merged":[[49,1,51,2],[43,4,43,6],[44,0,44,6],[45,3,45,6],[46,3,46,6],[47,3,47,6],[45,0,47,1],[40,4,40,6],[41,4,41,6],[42,4,42,6],[34,4,34,6],[35,4,35,6],[36,4,36,6],[37,4,37,6],[38,4,38,6],[31,4,31,6],[32,0,32,6],[33,4,33,6],[31,0,31,2],[39,4,39,6],[0,0,2,6],[9,4,9,6],[15,4,15,6],[16,4,16,6],[17,4,17,6],[13,4,13,6],[30,0,30,1],[14,0,14,6],[4,0,4,6],[5,0,5,6],[6,4,6,6],[18,4,18,6],[21,4,21,6],[19,4,19,6],[23,4,23,6],[22,4,22,6],[30,4,30,6],[29,4,29,6],[19,0,19,1],[10,4,10,6],[11,4,11,6],[12,4,12,6],[42,0,42,2],[43,0,43,2],[33,0,33,1],[34,0,34,1],[35,0,35,1],[36,0,36,1],[37,0,37,1],[39,0,39,1],[40,0,40,1],[41,0,41,1],[38,0,38,1],[18,0,18,1],[6,0,6,1],[8,0,8,1],[9,0,9,1],[10,0,10,1],[11,0,11,1],[15,0,15,1],[16,0,16,1],[17,0,17,1],[12,0,12,1],[13,0,13,2],[7,0,7,6],[8,4,8,6],[25,0,25,1],[24,0,24,1],[29,0,29,1],[20,0,20,1],[24,4,24,6],[25,4,25,6],[27,4,27,6],[26,4,26,6],[28,4,28,6],[26,0,26,1],[27,0,27,1],[28,0,28,1],[21,0,21,1],[20,4,20,6],[23,0,23,1],[22,0,22,1]]}
["ANÁLISIS DE RIESGOS"]
[]
[]
[]
["EVALUACIÓN DE LA VULNERABILIDAD ELEMENTO: RECURSOS"]
["Para diligenciar la columna \"RESPUESTA\" debe colocar:\n\nSI            = Cuando el aspecto existe o tiene un nivel bueno. El puntaje asignado es igual a 1\nNO          = Cuando el aspecto no existe o tiene un nivel deficiente. El puntaje asignado es igual a 0\nPARCIAL = Cuando la implementación no está terminada o tiene un nivel regular. El puntaje asignado es igual a 0,5"]
["ASPECTO A EVALUAR EN EL ELEMENTO RECURSOS",null,"RESPUESTA","CALIFICACION","OBSERVACIONES"]
["1. MATERIALES"]
["¿Se cuenta con cinta de acordonamiento o balizamiento?",null,"SI ",1,"Ninguna."]
["¿Se cuenta con extintores?",null,"SI ",1,"Se tiene:\n3. Co2 de 15 Lb \n3. Multipropósito 20 Lb \n5. Multipropósito de 10 Lb "]
["¿Se cuenta con camillas?",null,"SI ",1,"Se tiene el recurso. Sin embargo se tiene una de madera, se sugiere evaluar su cambio. "]
["¿Se cuenta con botiquines?",null,"SI ",1,"Se tiene recursos en los vehículos para la atención de emergencias externas. \nSe tiene un botiquín en la guardia, se sugiere realizar inspecciones periódicas y evaluar su estado. "]
["Existe dotación personal para el personal de la brigada y del comité de emergencias? ",null,"SI ",1,"Se tienen los equipos en la estación para todo el personal. "]
["Promedio de Materiales",null,null,{"$f":"AVERAGE(D9:D13)","v":1},{"$f":"IF(D14=\"\",\"\",IF($D14<0.34,\"MALO\",IF(AND($D14>=0.34,$D14<0.68),\"REGULAR\",\"BUENO\")))","v":"BUENO"}]
["2. EDIFICACIONES"]
["¿El tipo de construcción es sismo resistente o cuenta con reforzamiento estructural?",null,"PARCIAL",0.5,"No se tiene conocimiento. Sin embargo no se han realizado estudios que lo definan. "]
["¿Existen puertas y muros cortafuego, entre otras características de seguridad?",null,"NO ",0,"No se tiene conocimiento. "]
["¿Se cuenta con escalera de emergencia,  se encuentran en buen estado, poseen doble pasamanos, señalización, antideslizantes, entre otras características de seguridad?",null,"PARCIAL",0.5,"No se tiene escalera de emergencias establecida, las escaleras son de acceso común. Sin embargo evaluar su estado ya que presenta deterioro, fisura, daño. Falta señalización de emergencia. "]
["Las escaleras de la edificación usadas como ruta de evacuación,  se encuentran en buen estado, poseen doble pasamanos, señalización, antideslizantes, entre otras características de seguridad?",null,"PARCIAL",0.5,"No se tiene escalera de emergencias establecida, las escaleras son de acceso común. Sin embargo evaluar su estado ya que presenta deterioro, fisura, daño. Falta señalización de emergencia. "]
["Los pasillos y/o balcones cuentan con barandas o muros suficientemente altos para evitar caídas?",null,"PARCIAL",0.5,"Cumple con estas condiciones. Aunque no tiene balcones. "]
["¿Están definidas las rutas de evacuación y salidas de emergencia, debidamente señalizadas y con iluminación alterna?",null,"PARCIAL",0.5,"Se tiene definidas e idenficiadas. Sin embargo no se tiene  totalmente señalizado. "]
["¿Se tienen identificados espacios para la ubicación de instalaciones de emergencias (puntos de encuentro, puestos de mando, Módulos de estabilización de heridos, entre otros)?",null,"PARCIAL",0.5,"Se tiene el conocimiento frente a como ubicarlas, sin embargo no se tienen definidos los espacios. "]
["¿Se tienen asegurados o anclados enseres, gabinetes u objetos que puedan caer?",null,"PARCIAL",0.5,"Los armarios, estanterías de almacenamiento y/o sistemas de lokers no están asegurados ni anclados a la pared. Los sistemas de almacenamiento de herramientas y equipos de uso externo se tiene en estanterías fijas, se sugiere evaluar su estabilidad."]
["Existe más de una salida?",null,"SI ",1,"Se tienen dos salidas, sin embargo normalmente se tiene una en uso, la segunda salida se encuentra en el parqueadero de logística. "]
["¿La Organización  y el sector, cuentan con sistemas de pararrayos y polo a tierra?",null,"NO ",0,"No se tiene información "]
["¿La Organización está protegido y/o alejada  de árboles o postes que puedan caer?",null,"PARCIAL",0.5,"En el entorno de la estación tiene presencia de vegetación frondosa cercana, los postes de energía si se tienen en el perímetro."]
["¿Las ventanas, tejas y otros elementos no estructurales, se encuentran asegurados a la estructura?",null,"SI ",1,"Los elementos indicados si están fijos en la estructura donde se encuentran instalados. "]
["Los vidrios de las ventanas son de seguridad o tienen película de seguridad",null,"NO ",0,"Los vidrios de las ventanas no cuentan con películas de seguridad. En ninguno de los entornos. "]
["Las instalaciones cuentan  con un programa de mantenimiento preventivo de las redes (agua, luz, gas, electricidad)",null,"PARCIAL",0.5,"No se tiene información del programa, sin embargo si algunas de las redes presentan daño se solicita apoyo al área de mantenimiento y/o la entidad pertinente para dar su respectiva atención. "]
["La edificación cuenta con un adecuado sistema eléctrico, con protección contra sobrecargas.",null,"PARCIAL",0.5,"Se tiene el sistema eléctrico en optimas condiciones, sin embargo no se tiene conocimiento si se tiene la protección para sobrecargas. "]
["¿Están señalizados los equipos para atención de emergencias (extintores, camillas, botiquines)?",null,"SI ",1,"Se tiene señalización de los equipos que tiene instalados en la estación. Sin embargo realizar un refuerzo ya que no todos los equipos están con su identificación. "]
["Promedio Edificaciones",null,null,{"$f":"AVERAGE(D16:D31)","v":0.5},{"$f":"IF(D32=\"\",\"\",IF($D32<0.34,\"MALO\",IF(AND($D32>=0.34,$D32<0.68),\"REGULAR\",\"BUENO\")))","v":"REGULAR"}]
["3. EQUIPOS "]
["¿Se cuenta con algún sistema de alarmas? ",null,"SI ",1,"Se tiene alarma independiente en la estación para emergencias internas. "]
["¿Se cuenta con sistemas automáticos de detección de incendios?",null,"NO ",0,"NO"]
["¿Se cuenta con sistemas automáticos de control de incendios?",null,"NO ",0,"NO"]
["¿Se cuenta con sistemas de detección y/o monitoreo de otras amenazas identificadas?",null,"PARCIAL",0.5,"Se tiene sistema de circuito cerra de cámaras. "]
["¿Se cuenta con un sistema de comunicaciones internas?",null,"SI ",1,"Se tiene el sistema de comunicación en la estación. "]
["Se cuenta con un sistema de monitoreo o control de intrusos?",null,"SI ",1,"Se tiene sistema de circuito cerrado de cámaras. "]
["¿Se cuenta con gabinetes contra incendio ?",null,"NO ",0,"No se cuenta con el recuros en la estacion. "]
["¿Se cuenta con medios de transporte para el apoyo logístico en una emergencia (área protegida)?",null,"NO ",0,"No se tiene conocimiento."]
["¿Se cuenta con programa de mantenimiento preventivo para los equipos de emergencia?",null,"PARCIAL",0.5,"No se tiene conocimiento del programa como tal, sin embargo si presentan inconvenientes con los equipos de emergencia se solicita apoyo al ente encargado de hacer los ajustes y/o cambios pertinentes. "]
["Promedio Equipos",null,null,{"$f":"AVERAGE(D34:D42)","v":0.44444444444444442},{"$f":"IF(D43=\"\",\"\",IF($D43<0.34,\"MALO\",IF(AND($D43>=0.34,$D43<0.68),\"REGULAR\",\"BUENO\")))","v":"REGULAR"}]
["VULNERABILIDAD RECURSOS (SUMA TOTAL DE PROMEDIOS)",null,null,{"$f":"D14+D32+D43","v":1.9444444444444444},{"$f":"IF(D44<=1,\"ALTA\",IF(AND(D44>1,D44<=2),\"MEDIA\",\"BAJA\"))","v":"MEDIA"}]
[]
["Interpretación de la vulnerabilidad por cada aspecto",null,"BUENO","Si el resultado esta dentro del rango 0,68 a 1"]
[null,null,"REGULAR","Si el resultado esta dentro del rango 0,34 a 0,67"]
[null,null,"MALO","Si el resultado esta dentro del rango 0 a 0,33"]
[]
[null,"Interpretación de la vulnerabilidad por cada elemento",null,"0.0 - 1,00","ALTA"]
[null,null,null,"1,01 - 2,00","MEDIA"]
[null,null,null,"2,01 - 3,00","BAJA"]

{"sheet":" Vulsistem","index":5,"n_rows":34,"n_cols":5,"rows_kept":34,"cut":false,"hidden":false,"merged":[[25,4,25,6],[26,0,26,6],[31,1,33,2],[27,0,29,1],[27,3,27,6],[28,3,28,6],[29,3,29,6],[25,0,25,2],[21,4,21,6],[22,4,22,6],[21,0,21,1],[23,4,23,6],[24,4,24,6],[24,0,24,2],[22,0,22,1],[23,0,23,1],[4,0,4,6],[5,0,5,6],[6,4,6,6],[0,0,2,6],[13,0,13,1],[13,4,13,6],[11,4,11,6],[12,0,12,6],[6,0,6,1],[8,0,8,1],[9,0,9,1],[10,0,10,1],[7,0,7,6],[8,4,8,6],[9,4,9,6],[10,4,10,6],[11,0,11,2],[17,0,17,2],[14,0,14,1],[20,0,20,1],[16,0,16,1],[15,0,15,1],[18,0,18,6],[19,4,19,6],[20,4,20,6],[14,4,14,6],[15,4,15,6],[16,4,16,6],[17,4,17,6],[19,0,19,1]]}
["ANÁLISIS DE RIESGOS"]
[]
[]
[]
["EVALUACIÓN DE LA VULNERABILIDAD ELEMENTO:  SISTEMAS O PROCESOS"]
["Para diligenciar la columna \"RESPUESTA\" debe colocar:\n\nSI            = Cuando el aspecto existe o tiene un nivel bueno. El puntaje asignado es igual a 1\nNO          = Cuando el aspecto no existe o tiene un nivel deficiente. El puntaje asignado es igual a 0\nPARCIAL = Cuando la implementación no está terminada o tiene un nivel regular. El puntaje asignado es igual a 0,5"]
["ASPECTO A EVALUAR EN EL ELEMENTO SISTEMAS",null,"RESPUESTA","CALIFICACION","OBSERVACIONES"]
["1. SERVICIOS PÚBLICOS"]
["¿Se cuenta con suministro de energía permanente?",null,"SI ",1,"Ninguno"]
["¿Se cuenta suministro de agua permanente? ",null,"SI ",1,"Ninguno"]
["¿Se cuenta con un programa de gestión de residuos? ",null,"SI ",1,"Ninguno"]
["Promedio Servicios Públicos",null,null,{"$f":"AVERAGE(D9:D11)","v":1},{"$f":"IF(D12=\"\",\"\",IF($D12<0.34,\"MALO\",IF(AND($D12>=0.34,$D12<0.68),\"REGULAR\",\"BUENO\")))","v":"BUENO"}]
["2. SISTEMAS ALTERNOS"]
["¿Se cuenta con sistemas redundantes para el suministro de agua (tanque de reserva de agua, pozos subterráneos, carro tanque, entre otros?",null,"SI ",1,"Se tiene dos tanque de almacenamiento de agua subterráneos. "]
["¿Se cuenta con sistemas redundantes para el suministro de energía (plantas eléctricas, UPS, paneles solares, entre otros?",null,"SI ",1,"Se tiene una planta de energía instalada en la estación en el primer piso."]
["¿Existen hidrantes públicos y/o privados ?",null,"SI ",1,"Se tiene los hidrantes públicos ubicados cerca a la estación. "]
["¿Se cuenta con sistema de iluminación de emergencia?",null,"PARCIAL",0.5,"Se tiene señalización de emergencia en algunos espacios de la estación sin embargo no se evidencio durante el recorrido iluminación de emergencia. "]
["Promedio Sistemas Alternos",null,null,{"$f":"AVERAGE(D14:D17)","v":0.875},{"$f":"IF(D18=\"\",\"\",IF($D18<0.34,\"MALO\",IF(AND($D18>=0.34,$D18<0.68),\"REGULAR\",\"BUENO\")))","v":"BUENO"}]
["3. RECUPERACIÓN "]
["¿Se tienen identificados los procesos vitales para el funcionamiento de su organización?",null,"NO ",0,"No se tiene conocimiento "]
["¿Se cuenta con un plan de continuidad del negocio?",null,"NO ",0,"No se tiene conocimiento "]
["¿Se cuenta con algún sistema de seguros para los integrantes de la organización?",null,"PARCIAL",0.5,"Se tiene sus respectivos aportes de seguridad social. No se tiene conocimiento de algún servicio adicional. "]
["¿Se tienen aseguradas las edificaciones y los bienes en general para cada amenaza identificada?",null,"PARCIAL",0.5,"Los recursos tiene un control e inventario, sin embargo no se tiene conocimiento sobre un seguro como tal. "]
["Se cuenta con un sistema alterno para asegurar los expedientes en medio magnético y con alguna Cía. Aseguradora.",null,"PARCIAL",0.5,"Los recursos tiene un control e inventario, sin embargo no se tiene conocimiento sobre un seguro como tal. "]
["Promedio Recuperación",null,null,{"$f":"AVERAGE(D20:D24)","v":0.3},{"$f":"IF(D25=\"\",\"\",IF($D25<0.34,\"MALO\",IF(AND($D25>=0.34,$D25<0.68),\"REGULAR\",\"BUENO\")))","v":"MALO"}]
["VULNERABILIDAD SISTEMAS O PROCESOS (SUMA TOTAL DE PROMEDIOS)",null,null,{"$f":"IF(ISERROR(SUM(D12,D18,D25))=TRUE,\"\",SUM(D12,D18,D25))","v":2.1749999999999998},{"$f":"IF(D26<=1,\"ALTA\",IF(AND(D26>1,D26<=2),\"MEDIA\",\"BAJA\"))","v":"BAJA"}]
[]
["Interpretación de la vulnerabilidad por cada aspecto",null,"BUENO","Si el resultado esta dentro del rango 0,68 a 1"]
[null,null,"REGULAR","Si el resultado esta dentro del rango 0,34 a 0,67"]
[null,null,"MALO","Si el resultado esta dentro del rango 0 a 0,33"]
[]
[null,"Interpretación de la vulnerabilidad por cada elemento",null,"0.0 - 1,00","ALTA"]
[null,null,null,"1,01 - 2,00","MEDIA"]
[null,null,null,"2,01 - 3,00","BAJA"]

{"sheet":"Analisis del riesgo","index":6,"n_rows":43,"n_cols":59,"rows_kept":43,"cut":false,"hidden":false,"merged":[[22,36,22,58],[0,0,2,22],[36,0,36,22],[4,0,4,22],[9,0,9,22],[19,0,19,22],[6,3,6,20],[6,21,7,22],[6,0,7,2],[7,3,7,8],[7,9,7,14],[7,15,7,20]]}
[]
[]
[]
[]
["CONSOLIDADO ANÁLISIS DE RIESGO"]
[]
["ANALISIS DE AMENAZA",null,null,"ANÁLISIS DE VULNERABILIDAD",null,null,null,null,null,null,null,null,null,null,null,null,null,null,null,null,null,"NIVEL DEL RIESGO"]
[null,null,null,"PERSONAS",null,null,null,null,null,"RECURSOS",null,null,null,null,null,"SISTEMAS O PROCESOS"]
["AMENAZA","CALIFICACIÓN","COLOR DEL ROMBO","1.GESTIÓN ORGANIZACIONAL","2. CAPACITACION Y ENTRENAMIENTO","3. CARACTERÍSTICAS DE SEGURIDAD","TOTAL VULNERABILIDAD DE PERSONAS",null,"COLOR ROMBO PERSONAS","1. MATERIALES","2. EDIFICACIONES","3. EQUIPOS","TOTAL VULNERABILIDAD DE RECURSOS",null,"COLOR ROMBO RECURSOS","1. SERVICIOS PÚBLICOS","2. SISTEMAS ALTERNOS","3. RECUPERACIÓN ","TOTAL VULNERABILIDAD DE SISTEMAS O PROCESOS",null,null,"\nRESULTADO DEL DIAMANTE\nEl color del diamante depende del color de cada uno de los cuadrantes según el resultado obtenido en amenaza, personas, recursos, sistemas y procesos respectivamente","INTERPRETACIÓN"]
["NATURAL"]
[{"$f":"+Amenazas!B6","v":"Movimientos sísmicos"},{"$f":"+Amenazas!F6","v":"PROBABLE"},{"$f":"B11","v":"PROBABLE"},{"$f":"' Vulpersonas'!$D$17","v":0.5},{"$f":"' Vulpersonas'!$D$24","v":0.6},{"$f":"' Vulpersonas'!$D$31","v":0.9},{"$f":"' Vulpersonas'!$D$32","v":2},{"$f":"IF($G11=\"\",\"\",IF(AND($G11>=0,$G11<=1),\"ALTA\",IF(AND($G11>1,$G11<=2),\"MEDIA\",\"BAJA\")))","v":"MEDIA"},{"$f":"H11","v":"MEDIA"},{"$f":"Vulrecursos!$D$14","v":1},{"$f":"Vulrecursos!$D$32","v":0.5},{"$f":"Vulrecursos!$D$43","v":0.44444444444444442},{"$f":"Vulrecursos!$D$44","v":1.9444444444444444},{"$f":"IF($M11=\"\",\"\",IF(AND($M11>=0,$M11<=1),\"ALTA\",IF(AND($M11>1,$M11<=2),\"MEDIA\",\"BAJA\")))","v":"MEDIA"},{"$f":"N11","v":"MEDIA"},{"$f":"' Vulsistem'!$D$12","v":1},{"$f":"' Vulsistem'!$D$18","v":0.875},{"$f":"' Vulsistem'!$D$25","v":0.3},{"$f":"' Vulsistem'!$D$26","v":2.1749999999999998},{"$f":"IF($S11=\"\",\"\",IF(AND($S11>=0,$S11<=1),\"ALTA\",IF(AND($S11>1,$S11<=2),\"MEDIA\",\"BAJA\")))","v":"BAJA"},{"$f":"T11","v":"BAJA"},null,{"$f":"IF(OR(AND(B11=\"INMINENTE\",H11=\"ALTA\",N11=\"ALTA\"),AND(H11=\"ALTA\",N11=\"ALTA\",T11=\"ALTA\"),AND(N11=\"ALTA\",T11=\"ALTA\",B11=\"INMINENTE\"),AND(T11=\"ALTA\",B11=\"INMINENTE\",H11=\"ALTA\")),\"ALTO\",IF(OR(AND(B11=\"PROBABLE\",H11=\"MEDIA\",N11=\"MEDIA\"),AND(H11=\"MEDIA\",N11=\"MEDIA\",T11=\"MEDIA\"),AND(N11=\"MEDIA\",T11=\"MEDIA\",B11=\"PROBABLE\"),AND(T11=\"MEDIA\",B11=\"PROBABLE\",H10=\"MEDIA\"),AND(B10=\"INMINENTE\",H10=\"ALTA\"),AND(H10=\"ALTA\",N10=\"ALTA\"),AND(N10=\"ALTA\",T10=\"ALTA\"),AND(T10=\"ALTA\",B10=\"INMINENTE\"),AND(T10=\"ALTA\",H10=\"ALTA\"),AND(B10=\"INMINENTE\",N11=\"ALTA\"),B11=\"INMINENTE\",H11=\"ALTA\",N11=\"ALTA\",T11=\"ALTA\"),\"MEDIO\",\"BAJO\"))","v":"MEDIO"}]
[{"$f":"+Amenazas!B7","v":"Vientos fuertes"},{"$f":"+Amenazas!F7","v":"POSIBLE"},{"$f":"B12","v":"POSIBLE"},{"$f":"' Vulpersonas'!$D$17","v":0.5},{"$f":"' Vulpersonas'!$D$24","v":0.6},{"$f":"' Vulpersonas'!$D$31","v":0.9},{"$f":"' Vulpersonas'!$D$32","v":2},{"$f":"IF($G12=\"\",\"\",IF(AND($G12>=0,$G12<=1),\"ALTA\",IF(AND($G12>1,$G12<=2),\"MEDIA\",\"BAJA\")))","v":"MEDIA"},{"$f":"H12","v":"MEDIA"},{"$f":"Vulrecursos!$D$14","v":1},{"$f":"Vulrecursos!$D$32","v":0.5},{"$f":"Vulrecursos!$D$43","v":0.44444444444444442},{"$f":"Vulrecursos!$D$44","v":1.9444444444444444},{"$f":"IF($M12=\"\",\"\",IF(AND($M12>=0,$M12<=1),\"ALTA\",IF(AND($M12>1,$M12<=2),\"MEDIA\",\"BAJA\")))","v":"MEDIA"},{"$f":"N12","v":"MEDIA"},{"$f":"' Vulsistem'!$D$12","v":1},{"$f":"' Vulsistem'!$D$18","v":0.875},{"$f":"' Vulsistem'!$D$25","v":0.3},{"$f":"' Vulsistem'!$D$26","v":2.1749999999999998},{"$f":"IF($S12=\"\",\"\",IF(AND($S12>=0,$S12<=1),\"ALTA\",IF(AND($S12>1,$S12<=2),\"MEDIA\",\"BAJA\")))","v":"BAJA"},{"$f":"T12","v":"BAJA"},null,{"$f":"IF(OR(AND(B12=\"INMINENTE\",H12=\"ALTA\",N12=\"ALTA\"),AND(H12=\"ALTA\",N12=\"ALTA\",T12=\"ALTA\"),AND(N12=\"ALTA\",T12=\"ALTA\",B12=\"INMINENTE\"),AND(T12=\"ALTA\",B12=\"INMINENTE\",H12=\"ALTA\")),\"ALTO\",IF(OR(AND(B12=\"PROBABLE\",H12=\"MEDIA\",N12=\"MEDIA\"),AND(H12=\"MEDIA\",N12=\"MEDIA\",T12=\"MEDIA\"),AND(N12=\"MEDIA\",T12=\"MEDIA\",B12=\"PROBABLE\"),AND(T12=\"MEDIA\",B12=\"PROBABLE\",H11=\"MEDIA\"),AND(B11=\"INMINENTE\",H11=\"ALTA\"),AND(H11=\"ALTA\",N11=\"ALTA\"),AND(N11=\"ALTA\",T11=\"ALTA\"),AND(T11=\"ALTA\",B11=\"INMINENTE\"),AND(T11=\"ALTA\",H11=\"ALTA\"),AND(B11=\"INMINENTE\",N12=\"ALTA\"),B12=\"INMINENTE\",H12=\"ALTA\",N12=\"ALTA\",T12=\"ALTA\"),\"MEDIO\",\"BAJO\"))","v":"BAJO"}]
[{"$f":"+Amenazas!B8","v":"Tormenta eléctrica (descarga eléctrica)"},{"$f":"+Amenazas!F8","v":"POSIBLE"},"POSIBLE",{"$f":"' Vulpersonas'!$D$17","v":0.5},{"$f":"' Vulpersonas'!$D$24","v":0.6},{"$f":"' Vulpersonas'!$D$31","v":0.9},{"$f":"' Vulpersonas'!$D$32","v":2},"MEDIA","MEDIA",{"$f":"Vulrecursos!$D$14","v":1},{"$f":"Vulrecursos!$D$32","v":0.5},{"$f":"Vulrecursos!$D$43","v":0.44444444444444442},{"$f":"Vulrecursos!$D$44","v":1.9444444444444444},{"$f":"IF($M13=\"\",\"\",IF(AND($M13>=0,$M13<=1),\"ALTA\",IF(AND($M13>1,$M13<=2),\"MEDIA\",\"BAJA\")))","v":"MEDIA"},"MEDIA",{"$f":"' Vulsistem'!$D$12","v":1},{"$f":"' Vulsistem'!$D$18","v":0.875},{"$f":"' Vulsistem'!$D$25","v":0.3},{"$f":"' Vulsistem'!$D$26","v":2.1749999999999998},"BAJA","BAJA",null,"BAJO"]
[{"$f":"+Amenazas!B9","v":"Inundación "},{"$f":"+Amenazas!F9","v":"PROBABLE"},"PROBABLE",{"$f":"' Vulpersonas'!$D$17","v":0.5},{"$f":"' Vulpersonas'!$D$24","v":0.6},{"$f":"' Vulpersonas'!$D$31","v":0.9},{"$f":"' Vulpersonas'!$D$32","v":2},"MEDIA","MEDIA",{"$f":"Vulrecursos!$D$14","v":1},{"$f":"Vulrecursos!$D$32","v":0.5},{"$f":"Vulrecursos!$D$43","v":0.44444444444444442},{"$f":"Vulrecursos!$D$44","v":1.9444444444444444},"MEDIA","MEDIA",{"$f":"' Vulsistem'!$D$12","v":1},{"$f":"' Vulsistem'!$D$18","v":0.875},{"$f":"' Vulsistem'!$D$25","v":0.3},{"$f":"' Vulsistem'!$D$26","v":2.1749999999999998},"BAJA","BAJA",null,"MEDIO"]
[{"$f":"+Amenazas!B10","v":"Enfermedades endémicas"},{"$f":"+Amenazas!F10","v":"POSIBLE"},"POSIBLE",{"$f":"' Vulpersonas'!$D$17","v":0.5},{"$f":"' Vulpersonas'!$D$24","v":0.6},{"$f":"' Vulpersonas'!$D$31","v":0.9},{"$f":"' Vulpersonas'!$D$32","v":2},"MEDIA","MEDIA",{"$f":"Vulrecursos!$D$14","v":1},{"$f":"Vulrecursos!$D$32","v":0.5},{"$f":"Vulrecursos!$D$43","v":0.44444444444444442},{"$f":"Vulrecursos!$D$44","v":1.9444444444444444},"MEDIA","MEDIA",{"$f":"' Vulsistem'!$D$12","v":1},{"$f":"' Vulsistem'!$D$18","v":0.875},{"$f":"' Vulsistem'!$D$25","v":0.3},{"$f":"' Vulsistem'!$D$26","v":2.1749999999999998},"BAJA","BAJA",null,{"$f":"IF(OR(AND(B15=\"INMINENTE\",H15=\"ALTA\",N15=\"ALTA\"),AND(H15=\"ALTA\",N15=\"ALTA\",T15=\"ALTA\"),AND(N15=\"ALTA\",T15=\"ALTA\",B15=\"INMINENTE\"),AND(T15=\"ALTA\",B15=\"INMINENTE\",H15=\"ALTA\")),\"ALTO\",IF(OR(AND(B15=\"PROBABLE\",H15=\"MEDIA\",N15=\"MEDIA\"),AND(H15=\"MEDIA\",N15=\"MEDIA\",T15=\"MEDIA\"),AND(N15=\"MEDIA\",T15=\"MEDIA\",B15=\"PROBABLE\"),AND(T15=\"MEDIA\",B15=\"PROBABLE\",#REF!=\"MEDIA\"),AND(#REF!=\"INMINENTE\",#REF!=\"ALTA\"),AND(#REF!=\"ALTA\",#REF!=\"ALTA\"),AND(#REF!=\"ALTA\",#REF!=\"ALTA\"),AND(#REF!=\"ALTA\",#REF!=\"INMINENTE\"),AND(#REF!=\"ALTA\",#REF!=\"ALTA\"),AND(#REF!=\"INMINENTE\",N15=\"ALTA\"),B15=\"INMINENTE\",H15=\"ALTA\",N15=\"ALTA\",T15=\"ALTA\"),\"MEDIO\",\"BAJO\"))","v":{"$error":"#REF!"}}]
[{"$f":"+Amenazas!B11","v":"Pandemias "},{"$f":"+Amenazas!F11","v":"PROBABLE"},"PROBABLE",{"$f":"' Vulpersonas'!$D$17","v":0.5},{"$f":"' Vulpersonas'!$D$24","v":0.6},{"$f":"' Vulpersonas'!$D$31","v":0.9},{"$f":"' Vulpersonas'!$D$32","v":2},"MEDIA","MEDIA",{"$f":"Vulrecursos!$D$14","v":1},{"$f":"Vulrecursos!$D$32","v":0.5},{"$f":"Vulrecursos!$D$43","v":0.44444444444444442},{"$f":"Vulrecursos!$D$44","v":1.9444444444444444},"MEDIA","MEDIA",{"$f":"' Vulsistem'!$D$12","v":1},{"$f":"' Vulsistem'!$D$18","v":0.875},{"$f":"' Vulsistem'!$D$25","v":0.3},{"$f":"' Vulsistem'!$D$26","v":2.1749999999999998},"BAJA","BAJA",null,"MEDIO"]
[{"$f":"+Amenazas!B12","v":"Deslizamientos"},{"$f":"+Amenazas!F12","v":"POSIBLE"},"POSIBLE",{"$f":"' Vulpersonas'!$D$17","v":0.5},{"$f":"' Vulpersonas'!$D$24","v":0.6},{"$f":"' Vulpersonas'!$D$31","v":0.9},{"$f":"' Vulpersonas'!$D$32","v":2},"MEDIA","MEDIA",{"$f":"Vulrecursos!$D$14","v":1},{"$f":"Vulrecursos!$D$32","v":0.5},{"$f":"Vulrecursos!$D$43","v":0.44444444444444442},{"$f":"Vulrecursos!$D$44","v":1.9444444444444444},"MEDIA","MEDIA",{"$f":"' Vulsistem'!$D$12","v":1},{"$f":"' Vulsistem'!$D$18","v":0.875},{"$f":"' Vulsistem'!$D$25","v":0.3},{"$f":"' Vulsistem'!$D$26","v":2.1749999999999998},"BAJA","BAJA",null,"BAJO"]
[{"$f":"+Amenazas!B13","v":"Avenidas Torrenciales "},{"$f":"+Amenazas!F13","v":"PROBABLE"},"PROBABLE",{"$f":"' Vulpersonas'!$D$17","v":0.5},{"$f":"' Vulpersonas'!$D$24","v":0.6},{"$f":"' Vulpersonas'!$D$31","v":0.9},{"$f":"' Vulpersonas'!$D$32","v":2},"MEDIA","MEDIA",{"$f":"Vulrecursos!$D$14","v":1},{"$f":"Vulrecursos!$D$32","v":0.5},{"$f":"Vulrecursos!$D$43","v":0.44444444444444442},{"$f":"Vulrecursos!$D$44","v":1.9444444444444444},"MEDIA","MEDIA",{"$f":"' Vulsistem'!$D$12","v":1},{"$f":"' Vulsistem'!$D$18","v":0.875},{"$f":"' Vulsistem'!$D$25","v":0.3},{"$f":"' Vulsistem'!$D$26","v":2.1749999999999998},"BAJA","BAJA",null,"MEDIO"]
[{"$f":"+Amenazas!B14","v":"Granizadas"},{"$f":"+Amenazas!F14","v":"PROBABLE"},"PROBABLE",{"$f":"' Vulpersonas'!$D$17","v":0.5},{"$f":"' Vulpersonas'!$D$24","v":0.6},{"$f":"' Vulpersonas'!$D$31","v":0.9},{"$f":"' Vulpersonas'!$D$32","v":2},"MEDIA","MEDIA",{"$f":"Vulrecursos!$D$14","v":1},{"$f":"Vulrecursos!$D$32","v":0.5},{"$f":"Vulrecursos!$D$43","v":0.44444444444444442},{"$f":"Vulrecursos!$D$44","v":1.9444444444444444},"MEDIA","MEDIA",{"$f":"' Vulsistem'!$D$12","v":1},{"$f":"' Vulsistem'!$D$18","v":0.875},{"$f":"' Vulsistem'!$D$25","v":0.3},{"$f":"' Vulsistem'!$D$26","v":2.1749999999999998},"BAJA","BAJA",null,"MEDIO"]
["TECNOLOGICOS"]
[{"$f":"+Amenazas!B15","v":"Presencia de Materiales Peligrosos (Fuga y/o derrame de productos químicos)"},{"$f":"+Amenazas!F15","v":"PROBABLE"},{"$f":"B21","v":"PROBABLE"},{"$f":"' Vulpersonas'!$D$17","v":0.5},{"$f":"' Vulpersonas'!$D$24","v":0.6},{"$f":"' Vulpersonas'!$D$31","v":0.9},{"$f":"' Vulpersonas'!$D$32","v":2},{"$f":"IF($G21=\"\",\"\",IF(AND($G21>=0,$G21<=1),\"ALTA\",IF(AND($G21>1,$G21<=2),\"MEDIA\",\"BAJA\")))","v":"MEDIA"},"MEDIA",{"$f":"Vulrecursos!$D$14","v":1},{"$f":"Vulrecursos!$D$32","v":0.5},{"$f":"Vulrecursos!$D$43","v":0.44444444444444442},{"$f":"Vulrecursos!$D$44","v":1.9444444444444444},{"$f":"IF($M21=\"\",\"\",IF(AND($M21>=0,$M21<=1),\"ALTA\",IF(AND($M21>1,$M21<=2),\"MEDIA\",\"BAJA\")))","v":"MEDIA"},{"$f":"N21","v":"MEDIA"},{"$f":"' Vulsistem'!$D$12","v":1},{"$f":"' Vulsistem'!$D$18","v":0.875},{"$f":"' Vulsistem'!$D$25","v":0.3},{"$f":"' Vulsistem'!$D$26","v":2.1749999999999998},{"$f":"IF($S21=\"\",\"\",IF(AND($S21>=0,$S21<=1),\"ALTA\",IF(AND($S21>1,$S21<=2),\"MEDIA\",\"BAJA\")))","v":"BAJA"},{"$f":"T21","v":"BAJA"},null,{"$f":"IF(OR(AND(B21=\"INMINENTE\",H21=\"ALTA\",N21=\"ALTA\"),AND(H21=\"ALTA\",N21=\"ALTA\",T21=\"ALTA\"),AND(N21=\"ALTA\",T21=\"ALTA\",B21=\"INMINENTE\"),AND(T21=\"ALTA\",B21=\"INMINENTE\",H21=\"ALTA\")),\"ALTO\",IF(OR(AND(B21=\"PROBABLE\",H21=\"MEDIA\",N21=\"MEDIA\"),AND(H21=\"MEDIA\",N21=\"MEDIA\",T21=\"MEDIA\"),AND(N21=\"MEDIA\",T21=\"MEDIA\",B21=\"PROBABLE\"),AND(T21=\"MEDIA\",B21=\"PROBABLE\",H20=\"MEDIA\"),AND(B20=\"INMINENTE\",H20=\"ALTA\"),AND(H20=\"ALTA\",N20=\"ALTA\"),AND(N20=\"ALTA\",T20=\"ALTA\"),AND(T20=\"ALTA\",B20=\"INMINENTE\"),AND(T20=\"ALTA\",H20=\"ALTA\"),AND(B20=\"INMINENTE\",N21=\"ALTA\"),B21=\"INMINENTE\",H21=\"ALTA\",N21=\"ALTA\",T21=\"ALTA\"),\"MEDIO\",\"BAJO\"))","v":"MEDIO"}]
[{"$f":"+Amenazas!B16","v":"Incendio"},{"$f":"+Amenazas!F16","v":"POSIBLE"},{"$f":"B22","v":"POSIBLE"},{"$f":"' Vulpersonas'!$D$17","v":0.5},{"$f":"' Vulpersonas'!$D$24","v":0.6},{"$f":"' Vulpersonas'!$D$31","v":0.9},{"$f":"' Vulpersonas'!$D$32","v":2},"MEDIA","MEDIA",{"$f":"Vulrecursos!$D$14","v":1},{"$f":"Vulrecursos!$D$32","v":0.5},{"$f":"Vulrecursos!$D$43","v":0.44444444444444442},{"$f":"Vulrecursos!$D$44","v":1.9444444444444444},"MEDIA","MEDIA",{"$f":"' Vulsistem'!$D$12","v":1},{"$f":"' Vulsistem'!$D$18","v":0.875},{"$f":"' Vulsistem'!$D$25","v":0.3},{"$f":"' Vulsistem'!$D$26","v":2.1749999999999998},"BAJA","BAJA",null,{"$f":"IF(OR(AND(B22=\"INMINENTE\",H22=\"ALTA\",N22=\"ALTA\"),AND(H22=\"ALTA\",N22=\"ALTA\",T22=\"ALTA\"),AND(N22=\"ALTA\",T22=\"ALTA\",B22=\"INMINENTE\"),AND(T22=\"ALTA\",B22=\"INMINENTE\",H22=\"ALTA\")),\"ALTO\",IF(OR(AND(B22=\"PROBABLE\",H22=\"MEDIA\",N22=\"MEDIA\"),AND(H22=\"MEDIA\",N22=\"MEDIA\",T22=\"MEDIA\"),AND(N22=\"MEDIA\",T22=\"MEDIA\",B22=\"PROBABLE\"),AND(T22=\"MEDIA\",B22=\"PROBABLE\",H21=\"MEDIA\"),AND(B21=\"INMINENTE\",H21=\"ALTA\"),AND(H21=\"ALTA\",N21=\"ALTA\"),AND(N21=\"ALTA\",T21=\"ALTA\"),AND(T21=\"ALTA\",B21=\"INMINENTE\"),AND(T21=\"ALTA\",H21=\"ALTA\"),AND(B21=\"INMINENTE\",N22=\"ALTA\"),B22=\"INMINENTE\",H22=\"ALTA\",N22=\"ALTA\",T22=\"ALTA\"),\"MEDIO\",\"BAJO\"))","v":"BAJO"}]
[{"$f":"+Amenazas!B17","v":"Fallas estructurales"},{"$f":"+Amenazas!F17","v":"POSIBLE"},"POSIBLE",{"$f":"' Vulpersonas'!$D$17","v":0.5},{"$f":"' Vulpersonas'!$D$24","v":0.6},{"$f":"' Vulpersonas'!$D$31","v":0.9},{"$f":"' Vulpersonas'!$D$32","v":2},"MEDIA","MEDIA",{"$f":"Vulrecursos!$D$14","v":1},{"$f":"Vulrecursos!$D$32","v":0.5},{"$f":"Vulrecursos!$D$43","v":0.44444444444444442},{"$f":"Vulrecursos!$D$44","v":1.9444444444444444},"MEDIA","MEDIA",{"$f":"' Vulsistem'!$D$12","v":1},{"$f":"' Vulsistem'!$D$18","v":0.875},{"$f":"' Vulsistem'!$D$25","v":0.3},{"$f":"' Vulsistem'!$D$26","v":2.1749999999999998},"BAJA","BAJA",null,"BAJO",null,null,null,null,null,null,null,null,null,null,null,null,null,"TECNOLOGICOS"]
[{"$f":"+Amenazas!B18","v":"Incendio de vehículos"},{"$f":"+Amenazas!F18","v":"PROBABLE"},"PROBABLE",{"$f":"' Vulpersonas'!$D$17","v":0.5},{"$f":"' Vulpersonas'!$D$24","v":0.6},{"$f":"' Vulpersonas'!$D$31","v":0.9},{"$f":"' Vulpersonas'!$D$32","v":2},"MEDIA","MEDIA",{"$f":"Vulrecursos!$D$14","v":1},{"$f":"Vulrecursos!$D$32","v":0.5},{"$f":"Vulrecursos!$D$43","v":0.44444444444444442},{"$f":"Vulrecursos!$D$44","v":1.9444444444444444},"MEDIA","MEDIA",{"$f":"' Vulsistem'!$D$12","v":1},{"$f":"' Vulsistem'!$D$18","v":0.875},{"$f":"' Vulsistem'!$D$25","v":0.3},{"$f":"' Vulsistem'!$D$26","v":2.1749999999999998},"BAJA","BAJA",null,"MEDIO",null,null,null,null,null,null,null,null,null,null,null,null,null,{"$f":"+Amenazas!AK18","v":0},{"$f":"+Amenazas!AO18","v":0},{"$f":"AL24","v":0},{"$f":"' Vulpersonas'!$D$17","v":0.5},{"$f":"' Vulpersonas'!$D$24","v":0.6},{"$f":"' Vulpersonas'!$D$31","v":0.9},{"$f":"' Vulpersonas'!$D$32","v":2},{"$f":"IF($G24=\"\",\"\",IF(AND($G24>=0,$G24<=1),\"ALTA\",IF(AND($G24>1,$G24<=2),\"MEDIA\",\"BAJA\")))","v":"MEDIA"},{"$f":"AR24","v":"MEDIA"},{"$f":"Vulrecursos!$D$14","v":1},{"$f":"Vulrecursos!$D$32","v":0.5},{"$f":"Vulrecursos!$D$43","v":0.44444444444444442},{"$f":"Vulrecursos!$D$44","v":1.9444444444444444},{"$f":"IF($M24=\"\",\"\",IF(AND($M24>=0,$M24<=1),\"ALTA\",IF(AND($M24>1,$M24<=2),\"MEDIA\",\"BAJA\")))","v":"MEDIA"},{"$f":"AX24","v":"MEDIA"},{"$f":"' Vulsistem'!$D$12","v":1},{"$f":"' Vulsistem'!$D$18","v":0.875},{"$f":"' Vulsistem'!$D$25","v":0.3},{"$f":"' Vulsistem'!$D$26","v":2.1749999999999998},{"$f":"IF($S24=\"\",\"\",IF(AND($S24>=0,$S24<=1),\"ALTA\",IF(AND($S24>1,$S24<=2),\"MEDIA\",\"BAJA\")))","v":"BAJA"},{"$f":"BD24","v":"BAJA"},null,{"$f":"IF(OR(AND(AL24=\"INMINENTE\",AR24=\"ALTA\",AX24=\"ALTA\"),AND(AR24=\"ALTA\",AX24=\"ALTA\",BD24=\"ALTA\"),AND(AX24=\"ALTA\",BD24=\"ALTA\",AL24=\"INMINENTE\"),AND(BD24=\"ALTA\",AL24=\"INMINENTE\",AR24=\"ALTA\")),\"ALTO\",IF(OR(AND(AL24=\"PROBABLE\",AR24=\"MEDIA\",AX24=\"MEDIA\"),AND(AR24=\"MEDIA\",AX24=\"MEDIA\",BD24=\"MEDIA\"),AND(AX24=\"MEDIA\",BD24=\"MEDIA\",AL24=\"PROBABLE\"),AND(BD24=\"MEDIA\",AL24=\"PROBABLE\",AR23=\"MEDIA\"),AND(AL23=\"INMINENTE\",AR23=\"ALTA\"),AND(AR23=\"ALTA\",AX23=\"ALTA\"),AND(AX23=\"ALTA\",BD23=\"ALTA\"),AND(BD23=\"ALTA\",AL23=\"INMINENTE\"),AND(BD23=\"ALTA\",AR23=\"ALTA\"),AND(AL23=\"INMINENTE\",AX24=\"ALTA\"),AL24=\"INMINENTE\",AR24=\"ALTA\",AX24=\"ALTA\",BD24=\"ALTA\"),\"MEDIO\",\"BAJO\"))","v":"BAJO"}]
[{"$f":"+Amenazas!B19","v":"Explosión"},{"$f":"+Amenazas!F19","v":"POSIBLE"},"POSIBLE",{"$f":"' Vulpersonas'!$D$17","v":0.5},{"$f":"' Vulpersonas'!$D$24","v":0.6},{"$f":"' Vulpersonas'!$D$31","v":0.9},{"$f":"' Vulpersonas'!$D$32","v":2},"MEDIA","MEDIA",{"$f":"Vulrecursos!$D$14","v":1},{"$f":"Vulrecursos!$D$32","v":0.5},{"$f":"Vulrecursos!$D$43","v":0.44444444444444442},{"$f":"Vulrecursos!$D$44","v":1.9444444444444444},"MEDIA","MEDIA",{"$f":"' Vulsistem'!$D$12","v":1},{"$f":"' Vulsistem'!$D$18","v":0.875},{"$f":"' Vulsistem'!$D$25","v":0.3},{"$f":"' Vulsistem'!$D$26","v":2.1749999999999998},"BAJA","BAJA",null,"BAJO",null,null,null,null,null,null,null,null,null,null,null,null,null,{"$f":"+Amenazas!AK19","v":0},{"$f":"+Amenazas!AO19","v":0},{"$f":"AL25","v":0},{"$f":"' Vulpersonas'!$D$17","v":0.5},{"$f":"' Vulpersonas'!$D$24","v":0.6},{"$f":"' Vulpersonas'!$D$31","v":0.9},{"$f":"' Vulpersonas'!$D$32","v":2},"MEDIA","MEDIA",{"$f":"Vulrecursos!$D$14","v":1},{"$f":"Vulrecursos!$D$32","v":0.5},{"$f":"Vulrecursos!$D$43","v":0.44444444444444442},{"$f":"Vulrecursos!$D$44","v":1.9444444444444444},"MEDIA","MEDIA",{"$f":"' Vulsistem'!$D$12","v":1},{"$f":"' Vulsistem'!$D$18","v":0.875},{"$f":"' Vulsistem'!$D$25","v":0.3},{"$f":"' Vulsistem'!$D$26","v":2.1749999999999998},"BAJA","BAJA",null,{"$f":"IF(OR(AND(AL25=\"INMINENTE\",AR25=\"ALTA\",AX25=\"ALTA\"),AND(AR25=\"ALTA\",AX25=\"ALTA\",BD25=\"ALTA\"),AND(AX25=\"ALTA\",BD25=\"ALTA\",AL25=\"INMINENTE\"),AND(BD25=\"ALTA\",AL25=\"INMINENTE\",AR25=\"ALTA\")),\"ALTO\",IF(OR(AND(AL25=\"PROBABLE\",AR25=\"MEDIA\",AX25=\"MEDIA\"),AND(AR25=\"MEDIA\",AX25=\"MEDIA\",BD25=\"MEDIA\"),AND(AX25=\"MEDIA\",BD25=\"MEDIA\",AL25=\"PROBABLE\"),AND(BD25=\"MEDIA\",AL25=\"PROBABLE\",AR24=\"MEDIA\"),AND(AL24=\"INMINENTE\",AR24=\"ALTA\"),AND(AR24=\"ALTA\",AX24=\"ALTA\"),AND(AX24=\"ALTA\",BD24=\"ALTA\"),AND(BD24=\"ALTA\",AL24=\"INMINENTE\"),AND(BD24=\"ALTA\",AR24=\"ALTA\"),AND(AL24=\"INMINENTE\",AX25=\"ALTA\"),AL25=\"INMINENTE\",AR25=\"ALTA\",AX25=\"ALTA\",BD25=\"ALTA\"),\"MEDIO\",\"BAJO\"))","v":"BAJO"}]
[{"$f":"+Amenazas!B20","v":"Eléctrico"},{"$f":"+Amenazas!F20","v":"POSIBLE"},"POSIBLE",{"$f":"' Vulpersonas'!$D$17","v":0.5},{"$f":"' Vulpersonas'!$D$24","v":0.6},{"$f":"' Vulpersonas'!$D$31","v":0.9},{"$f":"' Vulpersonas'!$D$32","v":2},"MEDIA","MEDIA",{"$f":"Vulrecursos!$D$14","v":1},{"$f":"Vulrecursos!$D$32","v":0.5},{"$f":"Vulrecursos!$D$43","v":0.44444444444444442},{"$f":"Vulrecursos!$D$44","v":1.9444444444444444},"MEDIA","MEDIA",{"$f":"' Vulsistem'!$D$12","v":1},{"$f":"' Vulsistem'!$D$18","v":0.875},{"$f":"' Vulsistem'!$D$25","v":0.3},{"$f":"' Vulsistem'!$D$26","v":2.1749999999999998},"BAJA","BAJA",null,"BAJO",null,null,null,null,null,null,null,null,null,null,null,null,null,{"$f":"+Amenazas!AK20","v":0},{"$f":"+Amenazas!AO20","v":0},0,{"$f":"' Vulpersonas'!$D$17","v":0.5},{"$f":"' Vulpersonas'!$D$24","v":0.6},{"$f":"' Vulpersonas'!$D$31","v":0.9},{"$f":"' Vulpersonas'!$D$32","v":2},"MEDIA","MEDIA",{"$f":"Vulrecursos!$D$14","v":1},{"$f":"Vulrecursos!$D$32","v":0.5},{"$f":"Vulrecursos!$D$43","v":0.44444444444444442},{"$f":"Vulrecursos!$D$44","v":1.9444444444444444},"MEDIA","MEDIA",{"$f":"' Vulsistem'!$D$12","v":1},{"$f":"' Vulsistem'!$D$18","v":0.875},{"$f":"' Vulsistem'!$D$25","v":0.3},{"$f":"' Vulsistem'!$D$26","v":2.1749999999999998},"BAJA","BAJA",null,"BAJO"]
[{"$f":"+Amenazas!B21","v":"Contaminación industrial"},{"$f":"+Amenazas!F21","v":"POSIBLE"},"POSIBLE",{"$f":"' Vulpersonas'!$D$17","v":0.5},{"$f":"' Vulpersonas'!$D$24","v":0.6},{"$f":"' Vulpersonas'!$D$31","v":0.9},{"$f":"' Vulpersonas'!$D$32","v":2},"MEDIA","MEDIA",{"$f":"Vulrecursos!$D$14","v":1},{"$f":"Vulrecursos!$D$32","v":0.5},{"$f":"Vulrecursos!$D$43","v":0.44444444444444442},{"$f":"Vulrecursos!$D$44","v":1.9444444444444444},"MEDIA","MEDIA",{"$f":"' Vulsistem'!$D$12","v":1},{"$f":"' Vulsistem'!$D$18","v":0.875},{"$f":"' Vulsistem'!$D$25","v":0.3},{"$f":"' Vulsistem'!$D$26","v":2.1749999999999998},"BAJA","BAJA",null,"BAJO",null,null,null,null,null,null,null,null,null,null,null,null,null,{"$f":"+Amenazas!AK21","v":0},{"$f":"+Amenazas!AO21","v":0},0,{"$f":"' Vulpersonas'!$D$17","v":0.5},{"$f":"' Vulpersonas'!$D$24","v":0.6},{"$f":"' Vulpersonas'!$D$31","v":0.9},{"$f":"' Vulpersonas'!$D$32","v":2},"MEDIA","MEDIA",{"$f":"Vulrecursos!$D$14","v":1},{"$f":"Vulrecursos!$D$32","v":0.5},{"$f":"Vulrecursos!$D$43","v":0.44444444444444442},{"$f":"Vulrecursos!$D$44","v":1.9444444444444444},"MEDIA","MEDIA",{"$f":"' Vulsistem'!$D$12","v":1},{"$f":"' Vulsistem'!$D$18","v":0.875},{"$f":"' Vulsistem'!$D$25","v":0.3},{"$f":"' Vulsistem'!$D$26","v":2.1749999999999998},"BAJA","BAJA",null,"BAJO"]
[{"$f":"+Amenazas!B22","v":"Radiaciones "},{"$f":"+Amenazas!F22","v":"POSIBLE"},"POSIBLE",{"$f":"' Vulpersonas'!$D$17","v":0.5},{"$f":"' Vulpersonas'!$D$24","v":0.6},{"$f":"' Vulpersonas'!$D$31","v":0.9},{"$f":"' Vulpersonas'!$D$32","v":2},"MEDIA","MEDIA",{"$f":"Vulrecursos!$D$14","v":1},{"$f":"Vulrecursos!$D$32","v":0.5},{"$f":"Vulrecursos!$D$43","v":0.44444444444444442},{"$f":"Vulrecursos!$D$44","v":1.9444444444444444},"MEDIA","MEDIA",{"$f":"' Vulsistem'!$D$12","v":1},{"$f":"' Vulsistem'!$D$18","v":0.875},{"$f":"' Vulsistem'!$D$25","v":0.3},{"$f":"' Vulsistem'!$D$26","v":2.1749999999999998},"BAJA","BAJA",null,"BAJO"]
[{"$f":"+Amenazas!B23","v":"Mecánico"},{"$f":"+Amenazas!F23","v":"POSIBLE"},"POSIBLE",{"$f":"' Vulpersonas'!$D$17","v":0.5},{"$f":"' Vulpersonas'!$D$24","v":0.6},{"$f":"' Vulpersonas'!$D$31","v":0.9},{"$f":"' Vulpersonas'!$D$32","v":2},"MEDIA","MEDIA",{"$f":"Vulrecursos!$D$14","v":1},{"$f":"Vulrecursos!$D$32","v":0.5},{"$f":"Vulrecursos!$D$43","v":0.44444444444444442},{"$f":"Vulrecursos!$D$44","v":1.9444444444444444},"MEDIA","MEDIA",{"$f":"' Vulsistem'!$D$12","v":1},{"$f":"' Vulsistem'!$D$18","v":0.875},{"$f":"' Vulsistem'!$D$25","v":0.3},{"$f":"' Vulsistem'!$D$26","v":2.1749999999999998},"BAJA","BAJA",null,"BAJO"]
[{"$f":"+Amenazas!B24","v":"Accidentes de tránsito internos"},{"$f":"+Amenazas!F24","v":"POSIBLE"},{"$f":"B30","v":"POSIBLE"},{"$f":"' Vulpersonas'!$D$17","v":0.5},{"$f":"' Vulpersonas'!$D$24","v":0.6},{"$f":"' Vulpersonas'!$D$31","v":0.9},{"$f":"' Vulpersonas'!$D$32","v":2},"MEDIA","MEDIA",{"$f":"Vulrecursos!$D$14","v":1},{"$f":"Vulrecursos!$D$32","v":0.5},{"$f":"Vulrecursos!$D$43","v":0.44444444444444442},{"$f":"Vulrecursos!$D$44","v":1.9444444444444444},"MEDIA","MEDIA",{"$f":"' Vulsistem'!$D$12","v":1},{"$f":"' Vulsistem'!$D$18","v":0.875},{"$f":"' Vulsistem'!$D$25","v":0.3},{"$f":"' Vulsistem'!$D$26","v":2.1749999999999998},"BAJA","BAJA",null,"BAJO"]
[{"$f":"+Amenazas!B25","v":"Accidentes de tránsito externos"},{"$f":"+Amenazas!F25","v":"POSIBLE"},{"$f":"B31","v":"POSIBLE"},{"$f":"' Vulpersonas'!$D$17","v":0.5},{"$f":"' Vulpersonas'!$D$24","v":0.6},{"$f":"' Vulpersonas'!$D$31","v":0.9},{"$f":"' Vulpersonas'!$D$32","v":2},"MEDIA","MEDIA",{"$f":"Vulrecursos!$D$14","v":1},{"$f":"Vulrecursos!$D$32","v":0.5},{"$f":"Vulrecursos!$D$43","v":0.44444444444444442},{"$f":"Vulrecursos!$D$44","v":1.9444444444444444},"MEDIA","MEDIA",{"$f":"' Vulsistem'!$D$12","v":1},{"$f":"' Vulsistem'!$D$18","v":0.875},{"$f":"' Vulsistem'!$D$25","v":0.3},{"$f":"' Vulsistem'!$D$26","v":2.1749999999999998},"BAJA","BAJA",null,"BAJO"]
[{"$f":"+Amenazas!B26","v":"Accidentes mascotas y semovientes"},{"$f":"+Amenazas!F26","v":"POSIBLE"},"POSIBLE",{"$f":"' Vulpersonas'!$D$17","v":0.5},{"$f":"' Vulpersonas'!$D$24","v":0.6},{"$f":"' Vulpersonas'!$D$31","v":0.9},{"$f":"' Vulpersonas'!$D$32","v":2},"MEDIA","MEDIA",{"$f":"Vulrecursos!$D$14","v":1},{"$f":"Vulrecursos!$D$32","v":0.5},{"$f":"Vulrecursos!$D$43","v":0.44444444444444442},{"$f":"Vulrecursos!$D$44","v":1.9444444444444444},"MEDIA","MEDIA",{"$f":"' Vulsistem'!$D$12","v":1},{"$f":"' Vulsistem'!$D$18","v":0.875},{"$f":"' Vulsistem'!$D$25","v":0.3},{"$f":"' Vulsistem'!$D$26","v":2.1749999999999998},"BAJA","BAJA",null,"BAJO"]
[{"$f":"+Amenazas!B27","v":"Acciones inseguras de actores viales / exceso de velocidad / exceso de confianza / Utilización de elementos distractores / Sueño"},{"$f":"+Amenazas!F27","v":"POSIBLE"},"POSIBLE",{"$f":"' Vulpersonas'!$D$17","v":0.5},{"$f":"' Vulpersonas'!$D$24","v":0.6},{"$f":"' Vulpersonas'!$D$31","v":0.9},{"$f":"' Vulpersonas'!$D$32","v":2},"MEDIA","MEDIA",{"$f":"Vulrecursos!$D$14","v":1},{"$f":"Vulrecursos!$D$32","v":0.5},{"$f":"Vulrecursos!$D$43","v":0.44444444444444442},{"$f":"Vulrecursos!$D$44","v":1.9444444444444444},"MEDIA","MEDIA",{"$f":"' Vulsistem'!$D$12","v":1},{"$f":"' Vulsistem'!$D$18","v":0.875},{"$f":"' Vulsistem'!$D$25","v":0.3},{"$f":"' Vulsistem'!$D$26","v":2.1749999999999998},"BAJA","BAJA",null,"BAJO"]
[{"$f":"+Amenazas!B28","v":"Fallas del vehículo"},{"$f":"+Amenazas!F28","v":"POSIBLE"},"POSIBLE",{"$f":"' Vulpersonas'!$D$17","v":0.5},{"$f":"' Vulpersonas'!$D$24","v":0.6},{"$f":"' Vulpersonas'!$D$31","v":0.9},{"$f":"' Vulpersonas'!$D$32","v":2},"MEDIA","MEDIA",{"$f":"Vulrecursos!$D$14","v":1},{"$f":"Vulrecursos!$D$32","v":0.5},{"$f":"Vulrecursos!$D$43","v":0.44444444444444442},{"$f":"Vulrecursos!$D$44","v":1.9444444444444444},"MEDIA","MEDIA",{"$f":"' Vulsistem'!$D$12","v":1},{"$f":"' Vulsistem'!$D$18","v":0.875},{"$f":"' Vulsistem'!$D$25","v":0.3},{"$f":"' Vulsistem'!$D$26","v":2.1749999999999998},"BAJA","BAJA",null,"BAJO"]
[{"$f":"+Amenazas!B29","v":"Intensidad del tráfico"},{"$f":"+Amenazas!F29","v":"POSIBLE"},"POSIBLE",{"$f":"' Vulpersonas'!$D$17","v":0.5},{"$f":"' Vulpersonas'!$D$24","v":0.6},{"$f":"' Vulpersonas'!$D$31","v":0.9},{"$f":"' Vulpersonas'!$D$32","v":2},"MEDIA","MEDIA",{"$f":"Vulrecursos!$D$14","v":1},{"$f":"Vulrecursos!$D$32","v":0.5},{"$f":"Vulrecursos!$D$43","v":0.44444444444444442},{"$f":"Vulrecursos!$D$44","v":1.9444444444444444},"MEDIA","MEDIA",{"$f":"' Vulsistem'!$D$12","v":1},{"$f":"' Vulsistem'!$D$18","v":0.875},{"$f":"' Vulsistem'!$D$25","v":0.3},{"$f":"' Vulsistem'!$D$26","v":2.1749999999999998},"BAJA","BAJA",null,"BAJO"]
[{"$f":"+Amenazas!B30","v":"Estado de la infraestructura vial / Falta de iluminación / Falta de señalización "},{"$f":"+Amenazas!F30","v":"POSIBLE"},"POSIBLE",{"$f":"' Vulpersonas'!$D$17","v":0.5},{"$f":"' Vulpersonas'!$D$24","v":0.6},{"$f":"' Vulpersonas'!$D$31","v":0.9},{"$f":"' Vulpersonas'!$D$32","v":2},"MEDIA","MEDIA",{"$f":"Vulrecursos!$D$14","v":1},{"$f":"Vulrecursos!$D$32","v":0.5},{"$f":"Vulrecursos!$D$43","v":0.44444444444444442},{"$f":"Vulrecursos!$D$44","v":1.9444444444444444},"MEDIA","MEDIA",{"$f":"' Vulsistem'!$D$12","v":1},{"$f":"' Vulsistem'!$D$18","v":0.875},{"$f":"' Vulsistem'!$D$25","v":0.3},{"$f":"' Vulsistem'!$D$26","v":2.1749999999999998},"BAJA","BAJA",null,"BAJO"]
["SOCIAL"]
[{"$f":"+Amenazas!B31","v":"Hurto "},{"$f":"+Amenazas!F31","v":"POSIBLE"},"POSIBLE",{"$f":"' Vulpersonas'!$D$17","v":0.5},{"$f":"' Vulpersonas'!$D$24","v":0.6},{"$f":"' Vulpersonas'!$D$31","v":0.9},{"$f":"' Vulpersonas'!$D$32","v":2},"MEDIA","MEDIA",{"$f":"Vulrecursos!$D$14","v":1},{"$f":"Vulrecursos!$D$32","v":0.5},{"$f":"Vulrecursos!$D$43","v":0.44444444444444442},{"$f":"Vulrecursos!$D$44","v":1.9444444444444444},"MEDIA",{"$f":"N38","v":"MEDIA"},{"$f":"' Vulsistem'!$D$12","v":1},{"$f":"' Vulsistem'!$D$18","v":0.875},{"$f":"' Vulsistem'!$D$25","v":0.3},{"$f":"' Vulsistem'!$D$26","v":2.1749999999999998},"BAJA",{"$f":"T38","v":"BAJA"},null,{"$f":"IF(OR(AND(B38=\"INMINENTE\",H38=\"ALTA\",N38=\"ALTA\"),AND(H38=\"ALTA\",N38=\"ALTA\",T38=\"ALTA\"),AND(N38=\"ALTA\",T38=\"ALTA\",B38=\"INMINENTE\"),AND(T38=\"ALTA\",B38=\"INMINENTE\",H38=\"ALTA\")),\"ALTO\",IF(OR(AND(B38=\"PROBABLE\",H38=\"MEDIA\",N38=\"MEDIA\"),AND(H38=\"MEDIA\",N38=\"MEDIA\",T38=\"MEDIA\"),AND(N38=\"MEDIA\",T38=\"MEDIA\",B38=\"PROBABLE\"),AND(T38=\"MEDIA\",B38=\"PROBABLE\",H37=\"MEDIA\"),AND(B37=\"INMINENTE\",H37=\"ALTA\"),AND(H37=\"ALTA\",N37=\"ALTA\"),AND(N37=\"ALTA\",T37=\"ALTA\"),AND(T37=\"ALTA\",B37=\"INMINENTE\"),AND(T37=\"ALTA\",H37=\"ALTA\"),AND(B37=\"INMINENTE\",N38=\"ALTA\"),B38=\"INMINENTE\",H38=\"ALTA\",N38=\"ALTA\",T38=\"ALTA\"),\"MEDIO\",\"BAJO\"))","v":"BAJO"}]
[{"$f":"+Amenazas!B32","v":"Asalto"},{"$f":"+Amenazas!F32","v":"POSIBLE"},"POSIBLE",{"$f":"' Vulpersonas'!$D$17","v":0.5},{"$f":"' Vulpersonas'!$D$24","v":0.6},{"$f":"' Vulpersonas'!$D$31","v":0.9},{"$f":"' Vulpersonas'!$D$32","v":2},"MEDIA","MEDIA",{"$f":"Vulrecursos!$D$14","v":1},{"$f":"Vulrecursos!$D$32","v":0.5},{"$f":"Vulrecursos!$D$43","v":0.44444444444444442},{"$f":"Vulrecursos!$D$44","v":1.9444444444444444},"MEDIA","MEDIA",{"$f":"' Vulsistem'!$D$12","v":1},{"$f":"' Vulsistem'!$D$18","v":0.875},{"$f":"' Vulsistem'!$D$25","v":0.3},{"$f":"' Vulsistem'!$D$26","v":2.1749999999999998},"BAJA","BAJA",null,"BAJO"]
[{"$f":"+Amenazas!B33","v":"Secuestros"},{"$f":"+Amenazas!F33","v":"POSIBLE"},"POSIBLE",{"$f":"' Vulpersonas'!$D$17","v":0.5},{"$f":"' Vulpersonas'!$D$24","v":0.6},{"$f":"' Vulpersonas'!$D$31","v":0.9},{"$f":"' Vulpersonas'!$D$32","v":2},"MEDIA","MEDIA",{"$f":"Vulrecursos!$D$14","v":1},{"$f":"Vulrecursos!$D$32","v":0.5},{"$f":"Vulrecursos!$D$43","v":0.44444444444444442},{"$f":"Vulrecursos!$D$44","v":1.9444444444444444},"MEDIA","MEDIA",{"$f":"' Vulsistem'!$D$12","v":1},{"$f":"' Vulsistem'!$D$18","v":0.875},{"$f":"' Vulsistem'!$D$25","v":0.3},{"$f":"' Vulsistem'!$D$26","v":2.1749999999999998},"BAJA","BAJA",null,"BAJO"]
[{"$f":"+Amenazas!B34","v":"Asonadas"},{"$f":"+Amenazas!F34","v":"POSIBLE"},"POSIBLE",{"$f":"' Vulpersonas'!$D$17","v":0.5},{"$f":"' Vulpersonas'!$D$24","v":0.6},{"$f":"' Vulpersonas'!$D$31","v":0.9},{"$f":"' Vulpersonas'!$D$32","v":2},"MEDIA","MEDIA",{"$f":"Vulrecursos!$D$14","v":1},{"$f":"Vulrecursos!$D$32","v":0.5},{"$f":"Vulrecursos!$D$43","v":0.44444444444444442},{"$f":"Vulrecursos!$D$44","v":1.9444444444444444},"MEDIA","MEDIA",{"$f":"' Vulsistem'!$D$12","v":1},{"$f":"' Vulsistem'!$D$18","v":0.875},{"$f":"' Vulsistem'!$D$25","v":0.3},{"$f":"' Vulsistem'!$D$26","v":2.1749999999999998},"BAJA","BAJA",null,"BAJO"]
[{"$f":"+Amenazas!B35","v":"Terrorismo"},{"$f":"+Amenazas!F35","v":"POSIBLE"},"POSIBLE",{"$f":"' Vulpersonas'!$D$17","v":0.5},{"$f":"' Vulpersonas'!$D$24","v":0.6},{"$f":"' Vulpersonas'!$D$31","v":0.9},{"$f":"' Vulpersonas'!$D$32","v":2},"MEDIA","MEDIA",{"$f":"Vulrecursos!$D$14","v":1},{"$f":"Vulrecursos!$D$32","v":0.5},{"$f":"Vulrecursos!$D$43","v":0.44444444444444442},{"$f":"Vulrecursos!$D$44","v":1.9444444444444444},"MEDIA","MEDIA",{"$f":"' Vulsistem'!$D$12","v":1},{"$f":"' Vulsistem'!$D$18","v":0.875},{"$f":"' Vulsistem'!$D$25","v":0.3},{"$f":"' Vulsistem'!$D$26","v":2.1749999999999998},"BAJA","BAJA",null,"BAJO"]
[{"$f":"+Amenazas!B36","v":"Concentraciones masivas"},{"$f":"+Amenazas!F36","v":"POSIBLE"},"POSIBLE",{"$f":"' Vulpersonas'!$D$17","v":0.5},{"$f":"' Vulpersonas'!$D$24","v":0.6},{"$f":"' Vulpersonas'!$D$31","v":0.9},{"$f":"' Vulpersonas'!$D$32","v":2},"MEDIA","MEDIA",{"$f":"Vulrecursos!$D$14","v":1},{"$f":"Vulrecursos!$D$32","v":0.5},{"$f":"Vulrecursos!$D$43","v":0.44444444444444442},{"$f":"Vulrecursos!$D$44","v":1.9444444444444444},"MEDIA","MEDIA",{"$f":"' Vulsistem'!$D$12","v":1},{"$f":"' Vulsistem'!$D$18","v":0.875},{"$f":"' Vulsistem'!$D$25","v":0.3},{"$f":"' Vulsistem'!$D$26","v":2.1749999999999998},"BAJA","BAJA",null,"BAJO"]